[Event "*** SCC Grand Prix: Titled Tuesday Blitz"]
[Site "Chess.com"]
[Date "2020.07.07"]
[Round "5"]
[White "chenxiaoyuer"]
[Black "blitzking1729"]
[Result "1-0"]
[WhiteElo "2418"]
[BlackElo "2547"]
[TimeControl "180+1"]
[EndTime "10:56:27 PDT"]
[Termination "chenxiaoyuer won on time"]

1. e4 {[%clk 0:03:00.9]} 1... d6 {[%clk 0:02:54.3]} 2. d4 {[%clk 0:03:00.5]}
2... Nf6 {[%clk 0:02:45.6]} 3. Nc3 {[%clk 0:02:58.7]} 3... e5 {[%clk 0:02:45.6]}
4. Nf3 {[%clk 0:02:55.9]} 4... Nbd7 {[%clk 0:02:44.2]} 5. Bc4 {[%clk 0:02:55.1]}
5... Be7 {[%clk 0:02:43.7]} 6. O-O {[%clk 0:02:53.5]} 6... O-O {[%clk
0:02:43.1]} 7. Re1 {[%clk 0:02:53]} 7... c6 {[%clk 0:02:42.5]} 8. a4 {[%clk
0:02:52.1]} 8... Qc7 {[%clk 0:02:41.8]} 9. b3 {[%clk 0:02:43.9]} 9... b6 {[%clk
0:02:36.7]} 10. Bb2 {[%clk 0:02:42.7]} 10... Bb7 {[%clk 0:02:36]} 11. Bd3 {[%clk
0:02:42.1]} 11... a6 {[%clk 0:02:33.9]} 12. Ne2 {[%clk 0:02:38.7]} 12... b5
{[%clk 0:02:21]} 13. Ng3 {[%clk 0:02:33.7]} 13... Rfe8 {[%clk 0:02:20.2]} 14.
Nf5 {[%clk 0:02:34.6]} 14... Bf8 {[%clk 0:02:20.3]} 15. axb5 {[%clk 0:02:13.1]}
15... axb5 {[%clk 0:02:18.7]} 16. Qd2 {[%clk 0:02:05.3]} 16... exd4 {[%clk
0:02:12.9]} 17. N5xd4 {[%clk 0:01:58.9]} 17... Nc5 {[%clk 0:02:09.1]} 18. Qf4
{[%clk 0:01:49.4]} 18... Rxa1 {[%clk 0:02:01.8]} 19. Bxa1 {[%clk 0:01:46.7]}
19... Nxd3 {[%clk 0:01:46.8]} 20. cxd3 {[%clk 0:01:44]} 20... Nd7 {[%clk
0:01:46.7]} 21. Nf5 {[%clk 0:01:40.6]} 21... Ne5 {[%clk 0:01:44.5]} 22. Nxe5
{[%clk 0:01:22]} 22... dxe5 {[%clk 0:01:42.8]} 23. Qg3 {[%clk 0:01:22.3]} 23...
g6 {[%clk 0:01:42.6]} 24. Qg5 {[%clk 0:01:03.9]} 24... f6 {[%clk 0:01:26.4]} 25.
Nh6+ {[%clk 0:00:45.4]} 25... Kg7 {[%clk 0:01:14.6]} 26. Nf5+ {[%clk 0:00:44.2]}
26... Kg8 {[%clk 0:01:10.7]} 27. Nh6+ {[%clk 0:00:41.7]} 27... Bxh6 {[%clk
0:01:05.2]} 28. Qxh6 {[%clk 0:00:41]} 28... Ra8 {[%clk 0:01:00.4]} 29. Qe3
{[%clk 0:00:40]} 29... Qa5 {[%clk 0:00:52]} 30. h4 {[%clk 0:00:31.6]} 30... Qb4
{[%clk 0:00:46]} 31. Rf1 {[%clk 0:00:28.1]} 31... Qxb3 {[%clk 0:00:43.9]} 32. h5
{[%clk 0:00:24.7]} 32... Rc8 {[%clk 0:00:33.3]} 33. hxg6 {[%clk 0:00:23.6]}
33... hxg6 {[%clk 0:00:33.1]} 34. Qb6 {[%clk 0:00:22.9]} 34... Qf7 {[%clk
0:00:30.7]} 35. f4 {[%clk 0:00:22.9]} 35... Qc7 {[%clk 0:00:19.3]} 36. Qc5
{[%clk 0:00:13]} 36... exf4 {[%clk 0:00:18.7]} 37. Bxf6 {[%clk 0:00:13]} 37...
Rf8 {[%clk 0:00:16.3]} 38. Be5 {[%clk 0:00:11.7]} 38... Qd7 {[%clk 0:00:12.7]}
39. Rf3 {[%clk 0:00:10.5]} 39... g5 {[%clk 0:00:10.9]} 40. Bc3 {[%clk 0:00:09]}
40... Qd8 {[%clk 0:00:06]} 41. Qe5 {[%clk 0:00:07.4]} 41... Kf7 {[%clk
0:00:03.7]} 42. Qg7+ {[%clk 0:00:07.2]} 42... Ke6 {[%clk 0:00:02.4]} 43. Qxb7
{[%clk 0:00:07.9]} 43... Qd7 {[%clk 0:00:02.3]} 44. Qb6 {[%clk 0:00:06.3]} 44...
Rc8 {[%clk 0:00:01.5]} 45. Qc5 {[%clk 0:00:05.4]} 45... Qd6 {[%clk 0:00:01.4]}
46. Qf5+ {[%clk 0:00:05.1]} 46... Ke7 {[%clk 0:00:01.2]} 47. Qxc8 {[%clk
0:00:05.4]} 47... Qc5+ {[%clk 0:00:01.5]} 48. d4 {[%clk 0:00:05.8]} 48... Qa3
{[%clk 0:00:01.5]} 49. Qc7+ {[%clk 0:00:04.3]} 1-0

[Event "*** SCC Grand Prix: Titled Tuesday Blitz"]
[Site "Chess.com"]
[Date "2020.07.07"]
[Round "5"]
[White "yuliagok"]
[Black "Sueetin"]
[Result "1-0"]
[WhiteElo "2119"]
[BlackElo "2292"]
[TimeControl "180+1"]
[EndTime "10:56:29 PDT"]
[Termination "yuliagok won by resignation"]

1. d4 {[%clk 0:03:00.9]} 1... Nf6 {[%clk 0:02:59.6]} 2. c4 {[%clk 0:02:59.8]}
2... e6 {[%clk 0:02:59.6]} 3. Nc3 {[%clk 0:02:58.7]} 3... Bb4 {[%clk 0:02:59.3]}
4. Qc2 {[%clk 0:02:54]} 4... d5 {[%clk 0:02:58.8]} 5. cxd5 {[%clk 0:02:49.6]}
5... Qxd5 {[%clk 0:02:59.7]} 6. Nf3 {[%clk 0:02:47.4]} 6... Qf5 {[%clk
0:02:56.9]} 7. Qxf5 {[%clk 0:02:43.4]} 7... exf5 {[%clk 0:02:57.8]} 8. Bd2
{[%clk 0:02:42.4]} 8... c6 {[%clk 0:02:55.6]} 9. a3 {[%clk 0:02:41.4]} 9... Bd6
{[%clk 0:02:52.7]} 10. e3 {[%clk 0:02:40.4]} 10... Nbd7 {[%clk 0:02:49.2]} 11.
Bc4 {[%clk 0:02:39.6]} 11... h6 {[%clk 0:02:30.3]} 12. O-O {[%clk 0:02:37.8]}
12... Nf8 {[%clk 0:02:26.9]} 13. Ne5 {[%clk 0:02:27.9]} 13... Be6 {[%clk
0:02:24.1]} 14. Bxe6 {[%clk 0:02:23.4]} 14... Nxe6 {[%clk 0:02:23.7]} 15. f4
{[%clk 0:02:22.4]} 15... Nc7 {[%clk 0:02:01.9]} 16. b4 {[%clk 0:02:19.3]} 16...
a6 {[%clk 0:01:57.1]} 17. Rfb1 {[%clk 0:02:12]} 17... Ncd5 {[%clk 0:01:56.4]}
18. Nxd5 {[%clk 0:02:10.2]} 18... Nxd5 {[%clk 0:01:56.2]} 19. a4 {[%clk
0:02:06.9]} 19... Bxe5 {[%clk 0:01:53.2]} 20. fxe5 {[%clk 0:01:58.9]} 20... Nc7
{[%clk 0:01:36]} 21. Kf2 {[%clk 0:01:56.3]} 21... Kd7 {[%clk 0:01:35.6]} 22. Kf3
{[%clk 0:01:54.3]} 22... Ke6 {[%clk 0:01:35.8]} 23. e4 {[%clk 0:01:52.6]} 23...
Rhd8 {[%clk 0:01:31.8]} 24. exf5+ {[%clk 0:01:50.6]} 24... Kxf5 {[%clk
0:01:31.9]} 25. g4+ {[%clk 0:01:49.5]} 25... Ke6 {[%clk 0:01:31.2]} 26. Be3
{[%clk 0:01:47.3]} 26... Rd5 {[%clk 0:01:24.5]} 27. Ke4 {[%clk 0:01:39.8]} 27...
Rad8 {[%clk 0:01:21.1]} 28. Rf1 {[%clk 0:01:35.4]} 28... Ne8 {[%clk 0:00:41.8]}
29. h4 {[%clk 0:01:26.7]} 29... f6 {[%clk 0:00:41.7]} 30. exf6 {[%clk
0:01:18.9]} 30... Nxf6+ {[%clk 0:00:42.6]} 31. Kf3 {[%clk 0:01:14.5]} 31... Kd7
{[%clk 0:00:27.4]} 32. g5 {[%clk 0:01:10]} 32... hxg5 {[%clk 0:00:27]} 33. hxg5
{[%clk 0:01:08.8]} 33... Ne8 {[%clk 0:00:26.9]} 34. Kg4 {[%clk 0:01:05.2]} 34...
Kc7 {[%clk 0:00:22.7]} 35. Rf7+ {[%clk 0:01:01.4]} 35... R8d7 {[%clk 0:00:23.1]}
36. Raf1 {[%clk 0:00:59.7]} 36... Kd8 {[%clk 0:00:13.3]} 37. Rxd7+ {[%clk
0:00:53.9]} 37... Rxd7 {[%clk 0:00:07.8]} 38. Kh5 {[%clk 0:00:51.9]} 38... Re7
{[%clk 0:00:04.5]} 39. Bf4 {[%clk 0:00:38.7]} 39... Re4 {[%clk 0:00:04.3]} 40.
Be5 {[%clk 0:00:38.1]} 40... Re2 {[%clk 0:00:02]} 41. Kg6 {[%clk 0:00:36.4]}
41... Rb2 {[%clk 0:00:01.6]} 42. b5 {[%clk 0:00:31]} 42... axb5 {[%clk
0:00:01.3]} 43. axb5 {[%clk 0:00:30]} 43... cxb5 {[%clk 0:00:01.8]} 44. Rf8
{[%clk 0:00:26.8]} 44... Ke7 {[%clk 0:00:01.7]} 45. Rf7+ {[%clk 0:00:25.6]}
45... Kd8 {[%clk 0:00:01.5]} 46. Rxb7 {[%clk 0:00:24.6]} 46... b4 {[%clk
0:00:01.6]} 47. d5 {[%clk 0:00:23.5]} 47... b3 {[%clk 0:00:01.9]} 48. Bxb2
{[%clk 0:00:20.7]} 48... Nd6 {[%clk 0:00:01.8]} 49. Rxb3 {[%clk 0:00:19.7]}
49... Kd7 {[%clk 0:00:01.6]} 50. Bxg7 {[%clk 0:00:19.2]} 1-0

[Event "*** SCC Grand Prix: Titled Tuesday Blitz"]
[Site "Chess.com"]
[Date "2020.07.07"]
[Round "5"]
[White "Karacsonyi_Gellert"]
[Black "deep306"]
[Result "0-1"]
[WhiteElo "2470"]
[BlackElo "2656"]
[TimeControl "180+1"]
[EndTime "10:56:35 PDT"]
[Termination "deep306 won by checkmate"]

1. e4 {[%clk 0:03:00.9]} 1... e6 {[%clk 0:03:00]} 2. d4 {[%clk 0:02:59.8]} 2...
d5 {[%clk 0:03:00.4]} 3. e5 {[%clk 0:03:00.2]} 3... c5 {[%clk 0:03:00.3]} 4. c3
{[%clk 0:03:00.6]} 4... Nc6 {[%clk 0:03:00.3]} 5. Nf3 {[%clk 0:03:00.8]} 5...
Bd7 {[%clk 0:03:00.5]} 6. Be2 {[%clk 0:03:00.7]} 6... Qc7 {[%clk 0:02:59.7]} 7.
O-O {[%clk 0:03:00.4]} 7... f6 {[%clk 0:02:59.9]} 8. Bf4 {[%clk 0:03:00.2]} 8...
O-O-O {[%clk 0:02:59.5]} 9. a4 {[%clk 0:02:52.9]} 9... h6 {[%clk 0:02:59]} 10.
dxc5 {[%clk 0:02:50.6]} 10... fxe5 {[%clk 0:02:57.2]} 11. Bg3 {[%clk 0:02:50.6]}
11... Bxc5 {[%clk 0:02:55.9]} 12. b4 {[%clk 0:02:51.1]} 12... Bd6 {[%clk
0:02:55.9]} 13. Na3 {[%clk 0:02:49.7]} 13... e4 {[%clk 0:01:46.4]} 14. Nb5
{[%clk 0:02:45.1]} 14... Bxg3 {[%clk 0:01:43.4]} 15. Nxc7 {[%clk 0:02:32.5]}
15... exf3 {[%clk 0:01:42.8]} 16. fxg3 {[%clk 0:02:06.8]} 16... fxe2 {[%clk
0:01:42.4]} 17. Qxe2 {[%clk 0:02:07.7]} 17... Kxc7 {[%clk 0:01:42.6]} 18. b5
{[%clk 0:02:08.3]} 18... Nf6 {[%clk 0:01:16.9]} 19. bxc6 {[%clk 0:02:06.5]}
19... Bxc6 {[%clk 0:01:13.1]} 20. Qxe6 {[%clk 0:02:01]} 20... Rhe8 {[%clk
0:01:13.3]} 21. Qf5 {[%clk 0:01:59]} 21... Kb8 {[%clk 0:01:10.8]} 22. Rae1
{[%clk 0:01:57.7]} 22... Ne4 {[%clk 0:01:10.6]} 23. c4 {[%clk 0:01:50.6]} 23...
dxc4 {[%clk 0:01:07.9]} 24. Qf4+ {[%clk 0:01:26.6]} 24... Ka8 {[%clk 0:01:06.9]}
25. Rc1 {[%clk 0:01:22.7]} 25... c3 {[%clk 0:01:06.5]} 26. Rfe1 {[%clk
0:01:16.2]} 26... g5 {[%clk 0:01:05.8]} 27. Qe3 {[%clk 0:00:50.8]} 27... a6
{[%clk 0:01:05.5]} 28. h3 {[%clk 0:00:43.1]} 28... Bxa4 {[%clk 0:01:01.7]} 29.
Kh2 {[%clk 0:00:29.3]} 29... Bc6 {[%clk 0:00:56.1]} 30. Qb6 {[%clk 0:00:19]}
30... Rd2 {[%clk 0:00:50.6]} 31. Ra1 {[%clk 0:00:19.3]} 31... Re6 {[%clk
0:00:39.5]} 32. Rxa6+ {[%clk 0:00:13.5]} 32... bxa6 {[%clk 0:00:39.2]} 33. Qxa6+
{[%clk 0:00:08]} 33... Kb8 {[%clk 0:00:38.8]} 34. Rb1+ {[%clk 0:00:07.8]} 34...
Kc7 {[%clk 0:00:21.7]} 35. Qa5+ {[%clk 0:00:07.4]} 35... Kd7 {[%clk 0:00:20.3]}
36. Rb8 {[%clk 0:00:07.8]} 36... Re7 {[%clk 0:00:10.2]} 37. Rd8+ {[%clk
0:00:04.5]} 37... Ke6 {[%clk 0:00:08.8]} 38. Rf8 {[%clk 0:00:04.8]} 38... Nd6
{[%clk 0:00:07]} 39. h4 {[%clk 0:00:03.6]} 39... Rxg2+ {[%clk 0:00:06.6]} 40.
Kh3 {[%clk 0:00:04]} 40... g4+ {[%clk 0:00:06.7]} 41. Kxg4 {[%clk 0:00:03.7]}
41... Rg7+ {[%clk 0:00:07.2]} 42. Kh5 {[%clk 0:00:03.3]} 42... R2xg3 {[%clk
0:00:06.9]} 43. Qa2+ {[%clk 0:00:03]} 43... Bd5 {[%clk 0:00:06.7]} 44. Qe2+
{[%clk 0:00:03.4]} 44... Ne4 {[%clk 0:00:07]} 45. Re8+ {[%clk 0:00:03.1]} 45...
Kf5 {[%clk 0:00:07.2]} 46. Qf1+ {[%clk 0:00:02.1]} 46... Nf2 {[%clk 0:00:04.5]}
47. Qxf2+ {[%clk 0:00:02.6]} 47... Bf3+ {[%clk 0:00:04.8]} 48. Kxh6 {[%clk
0:00:01.6]} 48... R3g6# {[%clk 0:00:04.7]} 0-1

[Event "*** SCC Grand Prix: Titled Tuesday Blitz"]
[Site "Chess.com"]
[Date "2020.07.07"]
[Round "5"]
[White "SHIVACalypso"]
[Black "Azatic"]
[Result "0-1"]
[WhiteElo "2351"]
[BlackElo "2501"]
[TimeControl "180+1"]
[EndTime "10:56:35 PDT"]
[Termination "Azatic won on time"]

1. Nf3 {[%clk 0:03:00.9]} 1... c5 {[%clk 0:02:59.1]} 2. c4 {[%clk 0:03:00.5]}
2... Nf6 {[%clk 0:02:59.4]} 3. g3 {[%clk 0:03:00.7]} 3... b6 {[%clk 0:02:59.8]}
4. Bg2 {[%clk 0:02:57.5]} 4... Bb7 {[%clk 0:03:00.7]} 5. O-O {[%clk 0:02:56.7]}
5... e6 {[%clk 0:03:01.1]} 6. Nc3 {[%clk 0:02:56.3]} 6... Be7 {[%clk 0:03:01.4]}
7. d4 {[%clk 0:02:55.6]} 7... cxd4 {[%clk 0:03:02.3]} 8. Qxd4 {[%clk 0:02:55.2]}
8... O-O {[%clk 0:03:02.3]} 9. Rd1 {[%clk 0:02:53.3]} 9... Nc6 {[%clk
0:02:57.3]} 10. Qd2 {[%clk 0:02:52.2]} 10... Rc8 {[%clk 0:02:47.3]} 11. b3
{[%clk 0:02:52.3]} 11... Na5 {[%clk 0:02:18.9]} 12. Bb2 {[%clk 0:02:47.9]} 12...
d5 {[%clk 0:02:18.9]} 13. cxd5 {[%clk 0:02:41]} 13... Nxd5 {[%clk 0:02:19.8]}
14. Nxd5 {[%clk 0:02:40]} 14... Qxd5 {[%clk 0:01:48]} 15. Qf4 {[%clk 0:02:28.6]}
15... Qe4 {[%clk 0:01:04.4]} 16. Qxe4 {[%clk 0:02:11.6]} 16... Bxe4 {[%clk
0:01:03.7]} 17. Rac1 {[%clk 0:02:12]} 17... Rxc1 {[%clk 0:00:59.6]} 18. Rxc1
{[%clk 0:02:11]} 18... Rd8 {[%clk 0:00:53.6]} 19. Bc3 {[%clk 0:01:36.9]} 19...
Nc6 {[%clk 0:00:38.6]} 20. Nd2 {[%clk 0:01:23.3]} 20... Bxg2 {[%clk 0:00:37.4]}
21. Kxg2 {[%clk 0:01:24.2]} 21... f6 {[%clk 0:00:28]} 22. e3 {[%clk 0:01:11.6]}
22... e5 {[%clk 0:00:23.5]} 23. Kf1 {[%clk 0:01:04.1]} 23... Kf7 {[%clk
0:00:22.5]} 24. Ke2 {[%clk 0:01:03.4]} 24... Nb8 {[%clk 0:00:17.5]} 25. Bb2
{[%clk 0:00:59.8]} 25... Rd7 {[%clk 0:00:14.9]} 26. Nc4 {[%clk 0:00:51.1]} 26...
Na6 {[%clk 0:00:15.1]} 27. a3 {[%clk 0:00:42.7]} 27... Nc5 {[%clk 0:00:14.6]}
28. b4 {[%clk 0:00:40.3]} 28... Ne4 {[%clk 0:00:14.2]} 29. f3 {[%clk 0:00:33.6]}
29... Ng5 {[%clk 0:00:13.7]} 30. h4 {[%clk 0:00:31.7]} 30... Ne6 {[%clk
0:00:12.8]} 31. Nd2 {[%clk 0:00:28.4]} 31... Nc7 {[%clk 0:00:11.2]} 32. Nb3
{[%clk 0:00:22.2]} 32... h6 {[%clk 0:00:08.4]} 33. Rc6 {[%clk 0:00:18.8]} 33...
Ne8 {[%clk 0:00:07.5]} 34. Bc3 {[%clk 0:00:15.9]} 34... Rc7 {[%clk 0:00:07.8]}
35. Rxc7 {[%clk 0:00:15.6]} 35... Nxc7 {[%clk 0:00:08.7]} 36. Kd3 {[%clk
0:00:15]} 36... Ke6 {[%clk 0:00:09.1]} 37. e4 {[%clk 0:00:14.7]} 37... g6 {[%clk
0:00:08]} 38. Bd2 {[%clk 0:00:14.3]} 38... h5 {[%clk 0:00:07.6]} 39. a4 {[%clk
0:00:11.6]} 39... f5 {[%clk 0:00:05.8]} 40. Kc4 {[%clk 0:00:10.9]} 40... a6
{[%clk 0:00:02.7]} 41. b5 {[%clk 0:00:10.9]} 41... axb5+ {[%clk 0:00:02.2]} 42.
axb5 {[%clk 0:00:11.8]} 42... Kd7 {[%clk 0:00:01.6]} 43. Nc1 {[%clk 0:00:07.8]}
43... f4 {[%clk 0:00:01.9]} 44. gxf4 {[%clk 0:00:06.7]} 44... exf4 {[%clk
0:00:02.8]} 45. Bxf4 {[%clk 0:00:06.8]} 45... Bxh4 {[%clk 0:00:03.1]} 46. Bxc7
{[%clk 0:00:06.1]} 46... Kxc7 {[%clk 0:00:04]} 47. Nd3 {[%clk 0:00:06.4]} 47...
Bg3 {[%clk 0:00:04.3]} 48. Kd5 {[%clk 0:00:02.5]} 48... h4 {[%clk 0:00:04.6]}
0-1

[Event "*** SCC Grand Prix: Titled Tuesday Blitz"]
[Site "Chess.com"]
[Date "2020.07.07"]
[Round "5"]
[White "Yoshikrov"]
[Black "SiddharthGMJagadeesh"]
[Result "1-0"]
[WhiteElo "2097"]
[BlackElo "2435"]
[TimeControl "180+1"]
[EndTime "10:56:35 PDT"]
[Termination "Yoshikrov won by resignation"]

1. e4 {[%clk 0:03:00.9]} 1... d6 {[%clk 0:02:59.2]} 2. d4 {[%clk 0:03:00.9]}
2... Nf6 {[%clk 0:02:58.7]} 3. Nc3 {[%clk 0:03:01]} 3... e5 {[%clk 0:02:58.5]}
4. dxe5 {[%clk 0:03:00.4]} 4... dxe5 {[%clk 0:02:59.4]} 5. Qxd8+ {[%clk
0:03:00.3]} 5... Kxd8 {[%clk 0:03:00.3]} 6. Nf3 {[%clk 0:03:00.9]} 6... Bd6
{[%clk 0:02:59.7]} 7. Bc4 {[%clk 0:02:56.7]} 7... Ke8 {[%clk 0:02:59.3]} 8. Bg5
{[%clk 0:02:51]} 8... Nbd7 {[%clk 0:02:59]} 9. O-O-O {[%clk 0:02:48.5]} 9... a6
{[%clk 0:02:59.2]} 10. Kb1 {[%clk 0:02:35.7]} 10... h6 {[%clk 0:02:58.9]} 11.
Bh4 {[%clk 0:02:29.3]} 11... b5 {[%clk 0:02:58.5]} 12. Bd3 {[%clk 0:02:22.8]}
12... Bb7 {[%clk 0:02:54.8]} 13. Rhe1 {[%clk 0:02:20.4]} 13... Kf8 {[%clk
0:02:40.5]} 14. h3 {[%clk 0:02:06.1]} 14... g6 {[%clk 0:02:32.8]} 15. Bg3 {[%clk
0:02:02.5]} 15... Kg7 {[%clk 0:02:33]} 16. a3 {[%clk 0:01:55.6]} 16... Rab8
{[%clk 0:02:22.9]} 17. Bf1 {[%clk 0:01:42.3]} 17... Rhe8 {[%clk 0:02:18.3]} 18.
Bh4 {[%clk 0:01:05.9]} 18... g5 {[%clk 0:02:14.8]} 19. Bg3 {[%clk 0:01:06.1]}
19... Nc5 {[%clk 0:02:14]} 20. Nd2 {[%clk 0:01:00]} 20... Ne6 {[%clk 0:02:09.3]}
21. f3 {[%clk 0:00:54.6]} 21... Nf4 {[%clk 0:02:08]} 22. Bxf4 {[%clk 0:00:54.4]}
22... exf4 {[%clk 0:02:08.9]} 23. Nb3 {[%clk 0:00:53.1]} 23... Nd7 {[%clk
0:01:59.3]} 24. Nd4 {[%clk 0:00:53]} 24... Kh7 {[%clk 0:00:52.2]} 25. Nf5 {[%clk
0:00:53]} 25... Re6 {[%clk 0:00:51.9]} 26. Nxd6 {[%clk 0:00:48.5]} 26... cxd6
{[%clk 0:00:52.8]} 27. Nd5 {[%clk 0:00:48.1]} 27... Bxd5 {[%clk 0:00:50]} 28.
Rxd5 {[%clk 0:00:48]} 28... Nb6 {[%clk 0:00:48.6]} 29. Rd4 {[%clk 0:00:45.9]}
29... Kg7 {[%clk 0:00:43]} 30. Red1 {[%clk 0:00:46.1]} 30... Rd8 {[%clk
0:00:42.8]} 31. Be2 {[%clk 0:00:41.2]} 31... d5 {[%clk 0:00:36.5]} 32. Bd3
{[%clk 0:00:39.6]} 32... Red6 {[%clk 0:00:36.3]} 33. exd5 {[%clk 0:00:39.2]}
33... Nxd5 {[%clk 0:00:37.2]} 34. Be4 {[%clk 0:00:36]} 34... Nc3+ {[%clk
0:00:21.3]} 35. bxc3 {[%clk 0:00:36]} 35... Rxd4 {[%clk 0:00:22.2]} 36. Rxd4
{[%clk 0:00:36.3]} 36... Rc8 {[%clk 0:00:22.3]} 37. Kb2 {[%clk 0:00:36.3]} 37...
Rc5 {[%clk 0:00:22.3]} 38. Bd3 {[%clk 0:00:35.9]} 38... Re5 {[%clk 0:00:21.5]}
39. Re4 {[%clk 0:00:36]} 39... Rd5 {[%clk 0:00:21]} 40. Re7 {[%clk 0:00:35.5]}
40... Kf6 {[%clk 0:00:19.1]} 41. Ra7 {[%clk 0:00:34.6]} 41... Rd6 {[%clk
0:00:19.3]} 42. Kb3 {[%clk 0:00:33.5]} 42... Re6 {[%clk 0:00:19]} 43. Be4 {[%clk
0:00:31.9]} 43... Rd6 {[%clk 0:00:18.1]} 44. c4 {[%clk 0:00:30.7]} 44... bxc4+
{[%clk 0:00:15.9]} 45. Kxc4 {[%clk 0:00:31.1]} 45... Rd2 {[%clk 0:00:16.6]} 46.
Rxa6+ {[%clk 0:00:31.5]} 46... Kg7 {[%clk 0:00:17]} 47. Ra7 {[%clk 0:00:30.6]}
47... Rxg2 {[%clk 0:00:16.7]} 48. Kd3 {[%clk 0:00:28.1]} 48... Rg3 {[%clk
0:00:14.2]} 49. a4 {[%clk 0:00:28.6]} 49... Rxh3 {[%clk 0:00:14.2]} 50. a5
{[%clk 0:00:29.1]} 50... Rh1 {[%clk 0:00:13.6]} 51. a6 {[%clk 0:00:29.1]} 51...
Ra1 {[%clk 0:00:13.5]} 52. Bd5 {[%clk 0:00:27.6]} 52... Rd1+ {[%clk 0:00:12]}
53. Ke4 {[%clk 0:00:25.4]} 53... Re1+ {[%clk 0:00:11.8]} 54. Kf5 {[%clk
0:00:25.8]} 54... Ra1 {[%clk 0:00:06.1]} 55. Rxf7+ {[%clk 0:00:25.6]} 55... Kh8
{[%clk 0:00:06.7]} 56. a7 {[%clk 0:00:26.1]} 1-0

[Event "*** SCC Grand Prix: Titled Tuesday Blitz"]
[Site "Chess.com"]
[Date "2020.07.07"]
[Round "5"]
[White "EvgenyT"]
[Black "Paladin61"]
[Result "1-0"]
[WhiteElo "2878"]
[BlackElo "2638"]
[TimeControl "180+1"]
[EndTime "10:56:41 PDT"]
[Termination "EvgenyT won on time"]

1. d4 {[%clk 0:02:58.8]} 1... Nf6 {[%clk 0:02:59.8]} 2. Nf3 {[%clk 0:02:58.3]}
2... g6 {[%clk 0:02:59.9]} 3. Bg5 {[%clk 0:02:57.5]} 3... Bg7 {[%clk 0:02:59.9]}
4. Nbd2 {[%clk 0:02:56.3]} 4... O-O {[%clk 0:02:58.9]} 5. c3 {[%clk 0:02:55.5]}
5... d6 {[%clk 0:02:56.3]} 6. e4 {[%clk 0:02:54.4]} 6... c5 {[%clk 0:02:54.1]}
7. dxc5 {[%clk 0:02:53.4]} 7... dxc5 {[%clk 0:02:54.1]} 8. Bc4 {[%clk
0:02:53.6]} 8... Nc6 {[%clk 0:02:49.4]} 9. Qe2 {[%clk 0:02:52.2]} 9... Nd7
{[%clk 0:02:26.5]} 10. Rd1 {[%clk 0:02:25.3]} 10... Qc7 {[%clk 0:02:20.2]} 11.
O-O {[%clk 0:02:22.7]} 11... Nb6 {[%clk 0:02:03.7]} 12. Bb5 {[%clk 0:02:16.3]}
12... Be6 {[%clk 0:01:45.4]} 13. a4 {[%clk 0:01:53.3]} 13... h6 {[%clk
0:01:23.4]} 14. Bh4 {[%clk 0:01:49.3]} 14... a6 {[%clk 0:01:21.2]} 15. Bg3
{[%clk 0:01:29.5]} 15... Qc8 {[%clk 0:01:19.9]} 16. Nc4 {[%clk 0:01:10.4]} 16...
Nxc4 {[%clk 0:01:01.8]} 17. Bxc4 {[%clk 0:01:10.1]} 17... Na5 {[%clk 0:01:01.2]}
18. Bd5 {[%clk 0:01:08.8]} 18... Rd8 {[%clk 0:00:54.7]} 19. h3 {[%clk
0:01:06.7]} 19... Nc6 {[%clk 0:00:44]} 20. Qc4 {[%clk 0:01:00.1]} 20... Na5
{[%clk 0:00:41]} 21. Qa2 {[%clk 0:00:55.8]} 21... Bxd5 {[%clk 0:00:35]} 22. exd5
{[%clk 0:00:55.9]} 22... c4 {[%clk 0:00:34.2]} 23. Qa3 {[%clk 0:00:55.5]} 23...
Rd7 {[%clk 0:00:25.8]} 24. Qb4 {[%clk 0:00:38.9]} 24... Qd8 {[%clk 0:00:23.7]}
25. Rfe1 {[%clk 0:00:35.2]} 25... Rxd5 {[%clk 0:00:20.3]} 26. Rxd5 {[%clk
0:00:34]} 26... Qxd5 {[%clk 0:00:20.5]} 27. Qxe7 {[%clk 0:00:34.1]} 27... b5
{[%clk 0:00:18.1]} 28. Be5 {[%clk 0:00:28.6]} 28... Nc6 {[%clk 0:00:12.2]} 29.
Qb7 {[%clk 0:00:28.3]} 29... Re8 {[%clk 0:00:12.3]} 30. Bxg7 {[%clk 0:00:17.3]}
30... Rxe1+ {[%clk 0:00:13.1]} 31. Nxe1 {[%clk 0:00:17.2]} 31... Kxg7 {[%clk
0:00:13.4]} 32. axb5 {[%clk 0:00:17.6]} 32... axb5 {[%clk 0:00:09]} 33. Nf3
{[%clk 0:00:17.2]} 33... Qc5 {[%clk 0:00:08]} 34. Qc7 {[%clk 0:00:16.4]} 34...
Qd5 {[%clk 0:00:07.5]} 35. Qf4 {[%clk 0:00:15.1]} 35... Nd8 {[%clk 0:00:05]} 36.
Ne5 {[%clk 0:00:10.3]} 36... Nc6 {[%clk 0:00:05.3]} 37. Ng4 {[%clk 0:00:09.9]}
37... Qe6 {[%clk 0:00:05.7]} 38. Qxh6+ {[%clk 0:00:09.6]} 38... Kg8 {[%clk
0:00:05.2]} 39. Qg5 {[%clk 0:00:09.8]} 39... Kg7 {[%clk 0:00:05]} 40. Qxb5
{[%clk 0:00:09.6]} 40... Ne7 {[%clk 0:00:04.9]} 41. Ne3 {[%clk 0:00:09.4]} 41...
Qd6 {[%clk 0:00:03.8]} 42. Qxc4 {[%clk 0:00:09.1]} 42... Nc6 {[%clk 0:00:03.9]}
43. b4 {[%clk 0:00:08.6]} 43... Ne5 {[%clk 0:00:03.2]} 44. Qd4 {[%clk
0:00:08.5]} 44... Qxd4 {[%clk 0:00:02.4]} 45. cxd4 {[%clk 0:00:09]} 45... Nc6
{[%clk 0:00:03.3]} 46. Nc2 {[%clk 0:00:09.3]} 1-0